bitfinex/quotes_BTCUSD_20230120
["timestamp","ask_amount","ask_price","bid_price","bid_amount"]
[1674236478535,0.45067426,21375.0,21374.0,0.935716]
[1674236478808,0.80803052,21375.0,21374.0,0.467858]
[1674236479054,1.28523221,21375.0,21374.0,0.935716]
[1674236479599,1.28523221,21375.0,21374.0,0.467858]
[1674236479858,0.15,21374.0,21373.0,0.46788]
[1674236480122,0.73438532,21374.0,21372.0,0.467885]
[1674236480380,0.76117169,21373.0,21371.0,0.467906]
[1674236480635,0.55140169,21372.0,21370.0,0.467925]
[1674236480971,0.71995532,21371.0,21369.0,0.467951]
[1674236481229,0.0738,21370.0,21368.0,0.83570869]
[1674236481487,0.28397,21369.0,21368.0,0.83570869]
[1674236481979,0.43397,21369.0,21368.0,0.36773669]
[1674236482437,1.61835532,21369.0,21367.0,6e-05]
[1674236482440,1.58537169,21369.0,21367.0,6e-05]
[1674236482700,0.62540169,21368.0,21367.0,6e-05]
[1674236482972,1.19775666,21368.0,21367.0,6e-05]
[1674236483222,0.91097169,21368.0,21367.0,6e-05]
[1674236483492,1.2045839,21368.0,21367.0,6e-05]
[1674236484024,1.2787839,21368.0,21367.0,6e-05]
[1674236485322,1.2787839,21368.0,21367.0,0.00012]
[1674236486220,0.65158221,21368.0,21367.0,0.00012]
[1674236486458,0.36781221,21368.0,21367.0,0.00012]
[1674236487564,0.074,21369.0,21367.0,0.8467684]
[1674236488265,0.074,21369.0,21368.0,0.38916892]
[1674236488515,0.40067588,21371.0,21368.0,0.85715792]
[1674236488761,0.40067588,21371.0,21368.0,1.05147889]
[1674236489005,0.40067588,21371.0,21368.0,0.85715792]
[1674236490747,0.40067588,21371.0,21368.0,1.32514692]
[1674236490994,0.40067588,21371.0,21369.0,0.38758038]
[1674236491232,0.40067588,21371.0,21369.0,0.85553838]
[1674236491747,0.20977,21370.0,21369.0,0.38758038]
[1674236491973,0.0742,21371.0,21369.0,0.38758038]
[1674236492223,0.0742,21373.0,21369.0,1.13025497]
[1674236492468,0.48245953,21375.0,21370.0,0.19432097]
[1674236492469,0.00865953,21375.0,21370.0,0.19432097]
[1674236492717,0.00865953,21375.0,21371.0,1.91186497]
[1674236492962,0.39281813,21375.0,21372.0,0.314408]
[1674236493212,0.39281813,21375.0,21371.0,1.98563929]
[1674236493213,0.47720169,21374.0,21373.0,0.46788]
[1674236493471,0.62560169,21374.0,21373.0,0.46788]
[1674236494505,0.55140169,21374.0,21373.0,0.46788]
[1674236494771,0.77106184,21374.0,21368.0,6e-05]
[1674236495039,0.1483,21369.0,21368.0,6e-05]
[1674236495264,0.65848532,21369.0,21368.0,6e-05]
[1674236495516,0.65848532,21369.0,21367.0,6e-05]
[1674236495517,0.86825532,21369.0,21367.0,6e-05]
[1674236495754,0.55140169,21368.0,21367.0,6e-05]
[1674236495999,0.76117169,21368.0,21367.0,6e-05]
[1674236496248,1.06122439,21368.0,21367.0,6e-05]
[1674236496734,0.85145439,21368.0,21367.0,6e-05]
[1674236498221,1.13512439,21368.0,21367.0,6e-05]
[1674236498473,1.28512439,21368.0,21367.0,6e-05]
[1674236498974,0.98507169,21368.0,21367.0,6e-05]
[1674236499457,0.98507169,21368.0,21361.0,0.91159211]
[1674236499458,2.50204969,21368.0,21361.0,0.91159211]
[1674236499702,0.0738,21362.0,21361.0,0.91159211]
[1674236499952,0.31655363,21362.0,21361.0,0.91159211]
[1674236500220,0.58398532,21362.0,21360.0,0.00758172]
[1674236500514,1.15025532,21361.0,21360.0,0.00758172]
[1674236500758,1.26727169,21361.0,21360.0,0.00758172]
[1674236501501,1.56727169,21361.0,21360.0,0.00758172]
[1674236502000,1.56727169,21361.0,21354.0,0.48407548]
[1674236502254,0.0739,21355.0,21354.0,0.67839645]
[1674236502496,0.10688363,21355.0,21354.0,0.48407548]
[1674236502749,0.10688363,21355.0,21354.0,0.01578248]
[1674236502750,0.0739,21355.0,21354.0,0.01578248]
[1674236503729,0.28367,21355.0,21354.0,0.01578248]
[1674236503976,0.27567,21355.0,21354.0,0.01578248]
[1674236504228,0.0739,21355.0,21354.0,0.01578248]
[1674236504469,0.275766,21355.0,21354.0,0.01578248]
[1674236504717,0.0735,21355.0,21354.0,0.01578248]
[1674236504960,0.3284,21358.0,21354.0,0.45350557]
[1674236504961,0.43810398,21358.0,21354.0,0.45350557]
[1674236505203,0.91530567,21358.0,21355.0,0.19432097]
[1674236505937,0.91530567,21358.0,21354.0,0.92179557]
[1674236506185,0.0739,21358.0,21354.0,0.67839345]
[1674236506530,0.0739,21358.0,21355.0,0.15]
[1674236506754,0.0739,21358.0,21356.0,1.59492818]
[1674236506975,0.0739,21358.0,21357.0,0.332524]
[1674236507886,0.0739,21358.0,21356.0,1.27066018]
[1674236508562,0.0739,21358.0,21357.0,0.334976]
[1674236508771,0.0739,21358.0,21356.0,1.27066018]
[1674236509282,0.0739,21358.0,21357.0,0.7651096]
[1674236509491,0.0739,21358.0,21357.0,0.9151096]
[1674236509709,0.0742,21361.0,21357.0,0.471934]
[1674236509949,0.55140169,21361.0,21358.0,1.271575]
[1674236510172,0.55140169,21361.0,21359.0,0.471531]
[1674236510382,0.55140169,21361.0,21360.0,0.327984]
[1674236510820,0.83082562,21361.0,21360.0,0.327984]
[1674236511731,0.55140169,21361.0,21360.0,0.327984]
[1674236512168,0.55140169,21361.0,21360.0,0.37457752]
[1674236514067,0.0742,21361.0,21360.0,0.84274152]
[1674236514365,0.0742,21361.0,21360.0,0.37457752]
[1674236514646,0.0742,21363.0,21360.0,0.99274152]
[1674236514906,0.55140169,21363.0,21361.0,0.3863374]
[1674236515446,0.55140169,21363.0,21360.0,0.936327]
[1674236515447,0.83666085,21363.0,21360.0,0.936327]
[1674236515698,0.0742,21361.0,21360.0,0.936327]
[1674236516216,0.0742,21361.0,21360.0,1.36644074]
[1674236516469,0.0742,21361.0,21360.0,0.936327]
[1674236517820,0.0742,21361.0,21360.0,1.39744495]
[1674236519346,0.76246085,21363.0,21360.0,1.39744495]
[1674236519613,0.47720169,21363.0,21360.0,1.39744495]
[1674236519869,0.47720169,21363.0,21361.0,0.312609]
[1674236520124,0.47720169,21363.0,21361.0,0.4629661]
[1674236520383,0.47720169,21363.0,21362.0,0.37158418]
[1674236520633,0.28033654,21364.0,21362.0,0.83970418]
[1674236520915,0.39121704,21365.0,21362.0,1.30782418]
[1674236521195,0.86841873,21365.0,21362.0,1.50214515]
[1674236521439,0.86841873,21365.0,21362.0,1.30782418]
[1674236521964,0.86841873,21365.0,21362.0,0.93624]
[1674236521965,0.38551996,21364.0,21362.0,0.93624]
[1674236522208,0.38551996,21364.0,21362.0,0.46812]
[1674236522731,0.38551996,21364.0,21363.0,0.01083285]
[1674236523275,0.38551996,21364.0,21363.0,0.00678418]
[1674236523790,0.38551996,21364.0,21363.0,0.47488318]
[1674236524055,0.47720169,21365.0,21363.0,0.80611329]
[1674236525923,0.47720169,21365.0,21364.0,0.38962107]
[1674236526135,0.27853612,21366.0,21364.0,0.85769807]
[1674236526394,0.75573781,21366.0,21364.0,0.85769807]
[1674236527165,0.75573781,21366.0,21364.0,0.38962107]
[1674236527699,0.75573781,21366.0,21364.0,1.32576407]
[1674236528728,0.75573781,21366.0,21364.0,0.38962107]
[1674236529239,0.75573781,21366.0,21363.0,0.47486718]
[1674236529534,0.75573781,21366.0,21363.0,0.94294918]
[1674236529535,0.58137522,21365.0,21363.0,0.94294918]
[1674236529795,0.37950922,21365.0,21363.0,0.94294918]
[1674236530065,1.00361679,21365.0,21363.0,0.00678418]
[1674236530343,0.67906769,21364.0,21363.0,0.00678418]
[1674236530653,0.98075348,21364.0,21363.0,0.00678418]
[1674236531981,1.13075348,21364.0,21363.0,0.00678418]
[1674236532240,1.59883048,21364.0,21363.0,0.00678418]
[1674236532696,1.76522169,21364.0,21363.0,0.00678418]
[1674236532699,1.88802169,21364.0,21363.0,0.00678418]
[1674236533221,2.11983436,21364.0,21363.0,0.00678418]
[1674236533478,2.58791136,21364.0,21363.0,0.00678418]
[1674236535319,2.49171136,21364.0,21363.0,0.00678418]
[1674236536141,2.60288582,21364.0,21363.0,0.00678418]
[1674236536435,2.49171136,21364.0,21363.0,0.00678418]
[1674236536717,2.21382169,21364.0,21363.0,0.00678418]
[1674236536971,1.91382169,21364.0,21363.0,0.00678418]
[1674236537229,1.83922169,21364.0,21363.0,0.00678418]
[1674236538120,2.22843291,21364.0,21363.0,0.00678418]
[1674236538380,2.07843291,21364.0,21363.0,0.00678418]
[1674236538906,1.14227891,21364.0,21363.0,0.00678418]
[1674236539414,0.55120169,21364.0,21363.0,0.3896568]
[1674236539434,0.47720169,21364.0,21363.0,0.3896568]
[1674236539687,0.47720169,21364.0,21363.0,0.74943048]
[1674236540222,0.47720169,21364.0,21363.0,0.42862248]
[1674236540709,0.47720169,21364.0,21363.0,0.04574986]
[1674236541230,0.30231282,21365.0,21363.0,0.44616777]
[1674236541479,0.77951451,21365.0,21363.0,0.40720209]
[1674236542012,0.77951451,21365.0,21363.0,0.87529109]
[1674236542251,0.47720169,21365.0,21363.0,0.87529109]
[1674236543311,0.47720169,21365.0,21363.0,0.40720209]
[1674236545362,0.36068344,21366.0,21364.0,0.43098467]
[1674236545666,0.32844736,21366.0,21364.0,0.43098467]
[1674236545885,0.80564905,21366.0,21364.0,0.89905467]
[1674236546129,0.80564905,21366.0,21364.0,0.43098467]
[1674236546925,0.80564905,21366.0,21363.0,0.00678418]
[1674236547122,0.34865906,21365.0,21363.0,0.35474179]
[1674236547633,0.47720169,21366.0,21363.0,0.82282379]
[1674236547899,0.47720169,21366.0,21364.0,0.436356]
[1674236548166,0.47711159,21366.0,21364.0,0.436356]
[1674236551357,0.47711159,21366.0,21364.0,0.431356]
[1674236552150,0.7604502,21366.0,21364.0,0.431356]
[1674236552410,0.32727652,21365.0,21363.0,0.86977433]
[1674236552669,0.47711159,21366.0,21363.0,0.40168333]
[1674236552946,0.3673114,21367.0,21365.0,0.41532716]
[1674236553198,0.84451309,21367.0,21365.0,0.41532716]
[1674236554584,0.48771323,21367.0,21366.0,0.468033]
[1674236555111,0.48771323,21367.0,21365.0,0.88336816]
[1674236555378,0.48771323,21367.0,21365.0,0.41532716]
[1674236555634,0.58382875,21366.0,21365.0,0.936083]
[1674236555890,0.38196275,21366.0,21365.0,0.468034]
[1674236556654,0.48771323,21367.0,21365.0,0.84582865]
[1674236556919,0.48771323,21367.0,21366.0,0.36757066]
[1674236559078,0.48771323,21367.0,21365.0,0.936079]
[1674236559355,0.8604941,21367.0,21365.0,0.936079]
[1674236559860,0.48771323,21367.0,21366.0,0.38962284]
[1674236560146,0.01051154,21367.0,21366.0,1.32568884]
[1674236561179,0.01051154,21367.0,21365.0,0.46804]
[1674236561180,0.58275323,21367.0,21365.0,0.46804]
[1674236561460,0.58275323,21367.0,21364.0,0.40838901]
[1674236561461,0.48771323,21367.0,21364.0,0.40838901]
[1674236561745,0.85175036,21367.0,21364.0,0.40838901]
[1674236562001,0.85175036,21367.0,21364.0,0.87646101]
[1674236562002,0.54815171,21366.0,21364.0,0.87646101]
[1674236562282,0.34628571,21366.0,21364.0,0.87646101]
[1674236563863,0.34628571,21366.0,21364.0,1.34453801]
[1674236566923,0.34628571,21366.0,21364.0,0.936149]
[1674236567169,0.34628571,21366.0,21364.0,0.468077]
[1674236568690,0.8234874,21366.0,21363.0,0.468079]
[1674236568955,0.351866,21365.0,21363.0,0.468079]
[1674236569224,0.8234874,21366.0,21363.0,0.468079]
[1674236569726,0.08511154,21367.0,21365.0,0.36177589]
[1674236569727,0.01051154,21367.0,21365.0,0.36177589]
[1674236569988,0.01051154,21367.0,21366.0,0.303544]
[1674236569989,0.48771323,21367.0,21366.0,0.303544]
[1674236570245,0.48771323,21367.0,21366.0,0.325248]
[1674236571276,0.48771323,21367.0,21366.0,0.323868]
[1674236571528,0.48771323,21367.0,21365.0,0.36177589]
[1674236572542,0.48771323,21367.0,21366.0,0.320931]
[1674236572794,0.48771323,21367.0,21365.0,0.36177589]
[1674236573320,0.01051154,21367.0,21366.0,0.318787]
[1674236573575,0.01051154,21367.0,21366.0,0.352972]
[1674236574093,0.01040874,21367.0,21366.0,0.352972]
[1674236575375,0.01040874,21367.0,21365.0,0.36177589]
[1674236576139,0.01040874,21367.0,21365.0,0.82982689]
[1674236576393,0.01040874,21367.0,21366.0,6e-05]
[1674236576909,0.01040874,21367.0,21366.0,0.468093]
[1674236578962,0.10655874,21367.0,21366.0,6e-05]
[1674236579215,0.01040874,21367.0,21366.0,0.468093]
[1674236579475,0.01040874,21367.0,21366.0,0.936126]
[1674236579728,0.01040874,21367.0,21366.0,6e-05]
[1674236580245,0.10655874,21367.0,21366.0,0.468093]
[1674236580806,0.73376043,21367.0,21366.0,6e-05]
[1674236581048,0.93562643,21367.0,21366.0,6e-05]
[1674236582851,1.239594,21367.0,21366.0,6e-05]
[1674236584405,0.15,21366.0,21365.0,6e-05]
[1674236584906,0.351866,21366.0,21365.0,6e-05]
[1674236585644,0.15,21366.0,21365.0,6e-05]
[1674236585937,0.15,21366.0,21364.0,0.83502417]
[1674236585938,2.75e-05,21365.0,21364.0,0.83502417]
[1674236587219,2.75e-05,21365.0,21364.0,1.30310117]
[1674236587471,2.75e-05,21365.0,21364.0,1.45310117]
[1674236587699,2.75e-05,21365.0,21364.0,1.086141]
[1674236587986,2.75e-05,21365.0,21364.0,1.398138]
[1674236588262,2.75e-05,21365.0,21364.0,0.466826]
[1674236588529,2.75e-05,21365.0,21364.0,0.15]
[1674236588772,2.75e-05,21365.0,21364.0,1.086154]
[1674236589025,2.75e-05,21365.0,21364.0,1.409122]
[1674236589275,2.75e-05,21365.0,21364.0,1.086154]
[1674236589848,2.75e-05,21365.0,21364.0,1.435976]
[1674236590337,2.75e-05,21365.0,21364.0,1.086154]
[1674236591370,0.0961775,21365.0,21364.0,0.468077]
[1674236592428,0.0961775,21365.0,21363.0,0.46864061]
[1674236593487,2.75e-05,21365.0,21363.0,0.86545384]
[1674236593814,2.75e-05,21365.0,21364.0,0.53510104]
[1674236595462,2.75e-05,21365.0,21364.0,0.85946204]
[1674236595957,2.75e-05,21365.0,21364.0,0.474361]
[1674236596751,2.75e-05,21365.0,21364.0,0.15]
[1674236599985,2.75e-05,21365.0,21364.0,0.618077]
[1674236600245,0.0961775,21365.0,21364.0,0.618077]
[1674236600460,0.0961775,21365.0,21364.0,0.468077]
[1674236600988,2.75e-05,21365.0,21364.0,0.618077]
[1674236601514,2.75e-05,21365.0,21364.0,1.07608642]
[1674236601781,0.0961775,21365.0,21364.0,1.07608642]
[1674236602024,0.0961775,21365.0,21364.0,0.92608642]
[1674236603028,0.0961775,21365.0,21363.0,0.46864061]
[1674236603286,0.40226812,21365.0,21363.0,0.46864061]
[1674236604559,2.75e-05,21365.0,21363.0,0.90992621]
[1674236605095,2.75e-05,21365.0,21364.0,0.15]
[1674236606394,2.75e-05,21365.0,21364.0,0.618077]
[1674236606889,2.75e-05,21365.0,21364.0,0.943035]
[1674236607407,2.75e-05,21365.0,21364.0,1.39540905]
[1674236607677,2.75e-05,21365.0,21364.0,3.36138794]
[1674236607937,2.75e-05,21365.0,21364.0,3.18440402]
[1674236608205,2.75e-05,21365.0,21364.0,4.15741714]
[1674236608470,2.75e-05,21365.0,21364.0,4.26955535]
[1674236608758,2.75e-05,21365.0,21364.0,4.62475376]
[1674236609079,0.01040874,21367.0,21365.0,5.363e-05]
[1674236609322,0.01040874,21367.0,21366.0,1.83454741]
[1674236609590,0.01040874,21367.0,21366.0,1.722897]
[1674236610390,0.01040874,21367.0,21366.0,1.254864]
[1674236610900,0.58376043,21367.0,21366.0,0.936066]
[1674236611413,0.94394385,21367.0,21366.0,0.936066]
[1674236611693,1.14580985,21367.0,21366.0,0.468033]
[1674236611938,1.14580985,21367.0,21365.0,0.46809163]
[1674236612188,0.47720169,21366.0,21365.0,0.46809163]
[1674236613086,0.47720169,21366.0,21365.0,0.82027786]
[1674236616075,0.47720169,21366.0,21365.0,0.35223986]
[1674236616782,0.47720169,21366.0,21365.0,5.363e-05]
[1674236617066,0.67906769,21366.0,21365.0,5.363e-05]
[1674236617351,0.62720169,21366.0,21365.0,5.363e-05]
[1674236617597,1.15216243,21366.0,21365.0,5.363e-05]
[1674236618111,0.95029643,21366.0,21365.0,5.363e-05]
[1674236618362,1.00216243,21366.0,21365.0,5.363e-05]
[1674236618606,0.80029643,21366.0,21365.0,5.363e-05]
[1674236619598,1.00216243,21366.0,21365.0,5.363e-05]
[1674236619853,0.47720169,21366.0,21365.0,5.363e-05]
[1674236620103,0.47720169,21366.0,21365.0,0.41407219]
[1674236623637,0.47720169,21366.0,21365.0,1.35018219]
[1674236624144,0.47720169,21366.0,21365.0,0.88212719]
[1674236624456,0.47720169,21366.0,21365.0,0.87712719]
[1674236625171,0.47720169,21366.0,21365.0,0.40907219]
[1674236629971,0.47720169,21366.0,21365.0,0.40963548]
[1674236630196,0.47720169,21366.0,21365.0,0.00056329]
[1674236630492,0.98193864,21366.0,21365.0,0.00056329]
[1674236631284,0.78007264,21366.0,21365.0,0.00056329]
[1674236632096,0.47720169,21366.0,21365.0,0.00056329]
[1674236633396,0.67906769,21366.0,21365.0,0.00056329]
[1674236633661,0.47720169,21366.0,21365.0,0.43602424]
[1674236634449,0.47720169,21366.0,21365.0,0.00056329]
[1674236634450,0.67906769,21366.0,21365.0,0.00056329]
[1674236634982,0.82906769,21366.0,21365.0,0.00056329]
[1674236635782,1.16267368,21366.0,21365.0,0.00056329]
[1674236636606,2.09873968,21366.0,21365.0,0.00056329]
[1674236637158,1.63070668,21366.0,21365.0,0.00056329]
[1674236637695,1.16267368,21366.0,21365.0,0.00056329]
[1674236637953,0.96080768,21366.0,21365.0,0.00056329]
[1674236638202,0.81080768,21366.0,21365.0,0.00056329]
[1674236638722,1.01267368,21366.0,21365.0,0.00056329]
[1674236639252,2.33669709,21366.0,21365.0,0.00056329]
[1674236639540,3.26966979,21366.0,21365.0,0.00056329]
[1674236639794,3.43280262,21366.0,21365.0,0.00056329]
[1674236640046,3.65712524,21366.0,21365.0,0.00056329]
[1674236640358,3.43280262,21366.0,21365.0,0.00056329]
[1674236640615,3.91540481,21366.0,21365.0,0.00056329]
[1674236641647,3.91703221,21366.0,21365.0,0.00056329]
[1674236642192,0.15,21365.0,21358.0,0.20334355]
[1674236642437,0.0742,21361.0,21358.0,0.20334355]
[1674236642695,0.71205132,21360.0,21358.0,0.20334355]
[1674236643182,0.51018532,21360.0,21358.0,0.20334355]
[1674236643440,0.47720169,21360.0,21358.0,0.20334355]
[1674236643687,0.82232389,21360.0,21358.0,0.20334355]
[1674236643940,0.82232389,21360.0,21359.0,0.01125796]
[1674236644195,1.02418989,21360.0,21359.0,0.01125796]
[1674236644445,0.47720169,21360.0,21359.0,0.01125796]
[1674236644943,0.91087665,21360.0,21359.0,0.01125796]
[1674236645194,0.47720169,21360.0,21359.0,0.01125796]
[1674236645449,0.67906769,21360.0,21359.0,0.01125796]
[1674236645702,0.75366769,21360.0,21359.0,0.01125796]
[1674236645969,1.90923456,21360.0,21359.0,0.01125796]
[1674236646208,2.05923456,21360.0,21359.0,0.01125796]
[1674236646453,2.25830727,21360.0,21359.0,0.01125796]
[1674236647242,2.10830727,21360.0,21359.0,0.01125796]
[1674236647480,0.67906769,21360.0,21359.0,0.43896231]
[1674236647739,0.47720169,21360.0,21359.0,0.43896231]
[1674236649306,0.33152909,21359.0,21358.0,0.468208]
[1674236649764,0.33152909,21359.0,21357.0,0.93267796]
[1674236650278,0.32652909,21359.0,21357.0,0.93267796]
[1674236651050,0.32652909,21359.0,21357.0,0.468208]
[1674236651297,0.80373078,21359.0,21357.0,0.468208]
[1674236651553,0.201866,21358.0,21356.0,0.47677475]
[1674236651841,0.80373078,21359.0,21356.0,0.46177475]
[1674236652355,0.47720169,21358.0,21355.0,0.80806234]
[1674236652579,0.47720169,21357.0,21355.0,0.80806234]
[1674236652832,0.47720169,21357.0,21355.0,0.33980534]
[1674236653349,0.47720169,21357.0,21355.0,0.00854275]
[1674236654103,0.46497783,21356.0,21355.0,0.00854275]
[1674236654370,0.47720169,21357.0,21355.0,0.00854275]
[1674236654650,0.47720169,21357.0,21355.0,0.42351624]
[1674236656167,0.91646028,21356.0,21355.0,0.00854275]
[1674236657950,1.22161969,21356.0,21355.0,0.00854275]
[1674236658242,1.68987169,21356.0,21355.0,0.00854275]
[1674236658465,1.98987169,21356.0,21355.0,0.00854275]
[1674236658737,2.80399783,21356.0,21355.0,0.00854275]
[1674236658966,2.87859783,21356.0,21355.0,0.00854275]
[1674236659751,3.34684983,21356.0,21355.0,0.00854275]
[1674236661551,2.68272369,21356.0,21355.0,0.00854275]
[1674236661806,2.50445847,21356.0,21355.0,0.00854275]
[1674236662816,2.15812369,21356.0,21355.0,0.00854275]
[1674236663031,2.59987741,21356.0,21355.0,0.00854275]
[1674236663255,2.15812369,21356.0,21355.0,0.00854275]
[1674236663553,1.68987169,21356.0,21355.0,0.00854275]
[1674236663812,2.07530662,21356.0,21355.0,0.00854275]
[1674236664564,2.17530662,21356.0,21355.0,0.00854275]
[1674236665101,1.78987169,21356.0,21355.0,0.00854275]
[1674236665877,2.13902779,21356.0,21355.0,0.00854275]
[1674236666116,1.78987169,21356.0,21355.0,0.00854275]
[1674236666866,2.08372758,21356.0,21355.0,0.00854275]
[1674236667641,2.38372758,21356.0,21355.0,0.00854275]
[1674236668186,2.08987169,21356.0,21355.0,0.00854275]
[1674236668514,1.78987169,21356.0,21355.0,0.00854275]
[1674236669215,2.08987169,21356.0,21355.0,0.00854275]
[1674236672012,2.08930834,21356.0,21355.0,0.00854275]
[1674236672520,2.55756034,21356.0,21355.0,0.00854275]
[1674236673056,2.89759987,21356.0,21355.0,0.00854275]
[1674236673830,3.35933975,21356.0,21355.0,0.00854275]
[1674236674096,3.35933975,21356.0,21355.0,0.00019952]
[1674236674313,3.36783975,21356.0,21355.0,0.00019952]
[1674236675094,2.98069987,21356.0,21355.0,0.00019952]
[1674236675358,3.36783975,21356.0,21355.0,0.00019952]
[1674236676146,2.33216034,21356.0,21355.0,0.00019952]
[1674236676426,2.62270283,21356.0,21355.0,0.00019952]
[1674236676762,2.05445083,21356.0,21355.0,0.00019952]
[1674236676999,0.57271581,21355.0,21354.0,0.00859287]
[1674236677244,1.9864655,21355.0,21354.0,0.00859287]
[1674236677523,2.1883315,21355.0,21354.0,0.00760142]
[1674236677770,1.5181915,21355.0,21354.0,0.00760142]
[1674236678053,1.7200575,21355.0,21354.0,0.00760142]
[1674236678277,1.3681915,21355.0,21354.0,0.00760142]
[1674236678531,0.47720169,21355.0,21354.0,0.20192239]
[1674236678870,0.47720169,21355.0,21354.0,0.906781]
[1674236679539,0.35632188,21358.0,21354.0,1.695294]
[1674236679780,0.47720169,21357.0,21355.0,0.48312]
[1674236680026,0.47720169,21356.0,21354.0,0.84873317]
[1674236680756,0.47720169,21356.0,21354.0,1.31701417]
[1674236681260,0.47720169,21356.0,21355.0,0.318538]
[1674236681511,0.47720169,21356.0,21355.0,0.618274]
[1674236681776,0.47720169,21356.0,21355.0,0.468274]
[1674236682036,0.42080044,21359.0,21355.0,1.011148]
[1674236682288,0.659167,21361.0,21355.0,1.011148]
[1674236682289,0.47720169,21358.0,21356.0,0.316568]
[1674236682538,0.47720169,21358.0,21357.0,0.789011]
[1674236682776,0.47720169,21358.0,21357.0,1.257241]
[1674236684029,0.47720169,21358.0,21357.0,1.407241]
[1674236684320,0.42522076,21360.0,21357.0,1.257241]
[1674236684567,0.47720169,21358.0,21357.0,0.93646]
[1674236684805,0.47720169,21358.0,21356.0,0.85003935]
[1674236685053,0.47720169,21358.0,21357.0,0.46823]
[1674236686048,0.47720169,21358.0,21356.0,0.85003735]
[1674236687047,0.36689281,21359.0,21355.0,0.536]
[1674236687048,0.47720169,21357.0,21355.0,0.536]
[1674236687326,0.47720169,21356.0,21355.0,0.96949031]
[1674236687627,0.47720169,21356.0,21355.0,0.43349031]
[1674236689578,0.67906769,21356.0,21355.0,0.43349031]
[1674236689811,0.67906769,21356.0,21354.0,0.47589042]
[1674236690055,0.47720169,21355.0,21354.0,0.00760142]
[1674236691298,0.67906769,21355.0,21354.0,0.00760142]
[1674236691538,0.82906769,21355.0,21354.0,0.00760142]
[1674236691778,0.67906769,21355.0,21354.0,0.00760142]
[1674236692524,1.14559168,21355.0,21354.0,0.00760142]
[1674236693009,0.75326769,21355.0,21354.0,0.00760142]
[1674236693269,2.32585236,21355.0,21354.0,0.00760142]
[1674236693519,1.83981569,21355.0,21354.0,0.00760142]
[1674236693767,2.29989171,21355.0,21354.0,0.00760142]
[1674236694113,2.14989171,21355.0,21354.0,0.00760142]
[1674236694631,2.07569171,21355.0,21354.0,0.00760142]
[1674236695145,1.61561569,21355.0,21354.0,0.00760142]
[1674236695400,2.05494475,21355.0,21354.0,0.00760142]
[1674236695695,2.20494475,21355.0,21354.0,0.00760142]
[1674236696478,1.76561569,21355.0,21354.0,0.00760142]
[1674236696746,2.16104356,21355.0,21354.0,0.00760142]
[1674236697024,2.01104356,21355.0,21354.0,0.00760142]
[1674236697837,2.02274725,21355.0,21354.0,0.00760142]
[1674236698119,2.54694725,21355.0,21354.0,0.00760142]
[1674236698929,2.20391569,21355.0,21354.0,0.00760142]
[1674236699210,2.31607214,21355.0,21354.0,0.00760142]
[1674236699465,2.8714467,21355.0,21354.0,0.00760142]
[1674236699721,2.75929025,21355.0,21354.0,0.00760142]
[1674236699984,2.37215037,21355.0,21354.0,0.00760142]
[1674236700236,2.59646327,21355.0,21354.0,0.00760142]
[1674236700532,2.37215037,21355.0,21354.0,0.00760142]
[1674236700809,2.96405565,21355.0,21354.0,0.00760142]
[1674236701085,3.29524691,21355.0,21354.0,0.00760142]
[1674236701338,3.46328894,21355.0,21354.0,0.00760142]
[1674236701601,4.18730267,21355.0,21354.0,0.00017246]
[1674236701911,3.68284604,21355.0,21354.0,0.00017246]
[1674236702172,3.83284604,21355.0,21354.0,0.00017246]
[1674236702438,3.83284604,21355.0,21353.0,0.00851482]
[1674236702439,0.15,21354.0,21353.0,0.00851482]
[1674236702704,3.44627281,21354.0,21353.0,0.00851482]
[1674236702957,2.72746155,21354.0,21353.0,0.00839055]
[1674236703240,2.03529673,21354.0,21353.0,0.00839055]
[1674236703490,2.41479709,21354.0,21353.0,0.00839055]
[1674236703764,2.11446294,21354.0,21353.0,0.00839055]
[1674236704574,1.76475969,21354.0,21353.0,0.00839055]
[1674236705548,2.21475969,21354.0,21353.0,0.00839055]
[1674236705817,2.61253848,21354.0,21353.0,0.00839055]
[1674236706055,2.72457552,21354.0,21353.0,0.00839055]
[1674236706828,2.09389901,21354.0,21353.0,0.00839055]
[1674236707127,2.01929901,21354.0,21353.0,0.00839055]
[1674236707605,1.47650301,21354.0,21353.0,0.00839055]
[1674236708394,1.27463701,21354.0,21353.0,0.00839055]
[1674236708635,1.00820701,21354.0,21353.0,0.00839055]
[1674236709155,0.80634101,21354.0,21353.0,0.00839055]
[1674236709924,1.00820701,21354.0,21353.0,0.00839055]
[1674236710446,1.47650301,21354.0,21353.0,0.00839055]
[1674236710704,1.94479901,21354.0,21353.0,0.00839055]
[1674236710958,1.74293301,21354.0,21353.0,0.00839055]
[1674236711212,1.47650301,21354.0,21353.0,0.00839055]
[1674236711975,0.47720169,21354.0,21353.0,0.00839055]
[1674236712270,0.67906769,21354.0,21353.0,0.34843029]
[1674236713298,0.94549769,21354.0,21353.0,0.34843029]
[1674236713613,0.67906769,21354.0,21353.0,0.34843029]
[1674236714357,0.47720169,21354.0,21353.0,0.34843029]
[1674236715426,0.47720169,21354.0,21353.0,0.00839055]
[1674236715679,0.67906769,21354.0,21353.0,0.00839055]
[1674236716237,0.47720169,21354.0,21353.0,0.51783138]
[1674236716484,0.47720169,21354.0,21353.0,0.36783138]
[1674236717815,0.47720169,21354.0,21353.0,0.35783138]
[1674236718109,0.47720169,21354.0,21353.0,0.50783138]
[1674236718883,0.47720169,21354.0,21353.0,0.35783138]
[1674236720212,0.47720169,21354.0,21353.0,0.50783138]
[1674236720911,0.47720169,21354.0,21353.0,0.35783138]
[1674236721943,0.47720169,21354.0,21352.0,0.0746]
[1674236722188,0.47720169,21353.0,21351.0,0.9923444]
[1674236722442,0.47720169,21353.0,21352.0,0.44292634]
[1674236723248,0.47720169,21353.0,21352.0,0.34857396]
[1674236723507,0.036,21354.0,21353.0,0.38606055]
[1674236723764,0.036,21354.0,21353.0,1.39709655]
[1674236724279,0.035873,21354.0,21353.0,1.39709655]
[1674236725035,0.035873,21354.0,21353.0,1.72658955]
[1674236727367,0.035873,21354.0,21353.0,1.340529]
[1674236727623,0.035873,21354.0,21353.0,1.69721953]
[1674236728907,0.03577304,21354.0,21353.0,1.69721953]
[1674236729904,0.03567309,21354.0,21353.0,1.29332653]
[1674236730919,0.03557313,21354.0,21353.0,1.60927053]
[1674236731933,0.03557313,21354.0,21353.0,0.82500853]
[1674236732481,0.03557313,21354.0,21353.0,0.35669053]
[1674236732482,0.51277482,21354.0,21353.0,0.35669053]
[1674236732733,0.71464082,21354.0,21353.0,0.35669053]
[1674236733489,0.51277482,21354.0,21353.0,0.35669053]
[1674236734499,0.71464082,21354.0,21353.0,0.35669053]
[1674236735490,0.51277482,21354.0,21353.0,0.35669053]
[1674236737735,0.51277482,21354.0,21353.0,1.29332653]
[1674236738281,0.51277482,21354.0,21353.0,0.35669053]
[1674236739896,0.71464082,21354.0,21351.0,0.468343]